bitfinex/quotes_SOLUSD_20220306
["timestamp","ask_amount","ask_price","bid_price","bid_amount"]
[1646558503225,1.54036559,87.675,87.631,113.3]
[1646558503425,1.54036559,87.681,87.64,17.1104]
[1646558503624,1.54036559,87.681,87.64,30.8304]
[1646558503828,1.54036559,87.68,87.64,30.8304]
[1646558504047,1.54036559,87.679,87.641,33.27191102]
[1646558504627,1.54036559,87.677,87.641,33.27191102]
[1646558505029,1.54036559,87.674,87.641,33.27191102]
[1646558505425,1.54036559,87.675,87.641,33.27191102]
[1646558505827,1.54036559,87.673,87.641,33.27191102]
[1646558506028,1.54036559,87.67,87.641,33.27191102]
[1646558506425,1.54036559,87.674,87.641,33.27191102]
[1646558507227,1.54036559,87.675,87.641,33.27191102]
[1646558507728,1.54036559,87.674,87.641,33.27191102]
[1646558507928,1.54036559,87.675,87.641,33.27191102]
[1646558508128,1.54036559,87.674,87.641,33.27191102]
[1646558508529,1.54036559,87.673,87.641,33.27191102]
[1646558508729,1.54036559,87.674,87.641,33.27191102]
[1646558509128,1.54036559,87.673,87.641,33.27191102]
[1646558510431,1.54036559,87.675,87.641,33.27191102]
[1646558510631,1.54036559,87.676,87.641,33.27191102]
[1646558511029,1.54036559,87.674,87.641,33.27191102]
[1646558511832,1.54036559,87.674,87.65,70.7479]
[1646558512033,112.1,87.719,87.651,25.0]
[1646558512034,3.08245949,87.703,87.651,25.0]
[1646558512335,3.08245949,87.713,87.66,17.1053]
[1646558512530,6.23888581,87.718,87.661,52.63194301]
[1646558512930,3.08245949,87.719,87.661,52.63194301]
[1646558513333,3.08245949,87.721,87.67,17.1087]
[1646558513530,3.08245949,87.72,87.67,17.1087]
[1646558514130,3.08245949,87.721,87.67,17.1087]
[1646558514532,3.08245949,87.72,87.67,17.1087]
[1646558514734,6.23888581,87.72,87.67,17.1087]
[1646558514931,6.23888581,87.727,87.67,17.1087]
[1646558515132,6.23888581,87.728,87.67,17.1087]
[1646558516131,9.3213453,87.728,87.67,17.1087]
[1646558516332,6.23888581,87.728,87.67,17.1087]
[1646558516934,6.23888581,87.728,87.661,52.63194301]
[1646558517331,67.43268738,87.728,87.661,52.63194301]
[1646558517732,6.23888581,87.727,87.661,52.63194301]
[1646558518932,6.23888581,87.728,87.661,52.63194301]
[1646558520234,6.23888581,87.728,87.67,17.1088]
[1646558521643,48.15364655,87.727,87.67,17.1088]
[1646558521837,6.23888581,87.726,87.65,30.6786]
[1646558522038,22.9589,87.725,87.65,17.1127]
[1646558522243,22.9589,87.725,87.612,23.7129]
[1646558522244,3.08245949,87.716,87.612,23.7129]
[1646558522441,3.08245949,87.703,87.612,23.7129]
[1646558522638,3.08245949,87.7,87.595,17.0005]
[1646558522849,113.3,87.696,87.597,62.49439964]
[1646558523242,113.3,87.682,87.597,62.49439964]
[1646558523441,113.3,87.676,87.597,62.49439964]
[1646558524140,2.06402713,87.675,87.597,62.49439964]
[1646558524740,113.3,87.673,87.597,62.49439964]
[1646558525140,130.99737201,87.673,87.597,62.49439964]
[1646558525341,17.69737201,87.673,87.597,62.49439964]
[1646558525740,17.69737201,87.673,87.6,17.1221]
[1646558525939,113.3,87.672,87.6,17.1221]
[1646558526560,17.69737201,87.673,87.6,17.1221]
[1646558526759,2.06402713,87.675,87.6,17.1221]
[1646558527761,2.06402713,87.675,87.597,62.49439964]
[1646558528264,1.176,87.674,87.597,62.49439964]
[1646558528662,1.177,87.676,87.597,62.49439964]
[1646558528862,1.177,87.676,87.6,17.1227]
[1646558529964,2.06402713,87.675,87.597,62.49439964]
[1646558530163,114.478,87.674,87.597,62.49439964]
[1646558530768,114.479,87.672,87.597,62.49439964]
[1646558531370,19.76139914,87.673,87.597,62.49439964]
[1646558531568,17.69737201,87.672,87.597,62.49439964]
[1646558531970,19.76139914,87.672,87.597,62.49439964]
[1646558532170,116.54502713,87.671,87.597,62.49439964]
[1646558532369,113.3,87.669,87.571,24.2672]
[1646558532569,113.3,87.667,87.56,17.1301]
[1646558532770,1.183,87.666,87.56,17.1301]
[1646558532970,27.17127954,87.666,87.56,17.1301]
[1646558533170,139.28827954,87.665,87.56,17.1301]
[1646558533374,113.3,87.662,87.561,56.2564852]
[1646558533570,1.185,87.661,87.561,56.2564852]
[1646558533971,113.3,87.659,87.561,56.2564852]
[1646558534175,1.176,87.658,87.561,56.2564852]
[1646558534371,113.3,87.657,87.561,56.2564852]
[1646558534571,1.167,87.656,87.561,56.2564852]
[1646558534772,113.3,87.655,87.561,56.2564852]
[1646558534971,139.28827954,87.655,87.561,56.2564852]
[1646558535172,113.3,87.653,87.561,56.2564852]
[1646558535472,113.3,87.649,87.561,56.2564852]
[1646558535671,113.3,87.647,87.561,56.2564852]
[1646558536074,113.3,87.645,87.561,56.2564852]
[1646558536474,113.3,87.643,87.561,56.2564852]
[1646558536678,19.76139914,87.644,87.57,17.1283]
[1646558536875,24.2796,87.643,87.57,24.7583]
[1646558537078,24.2796,87.643,87.57,38.4783]
[1646558538078,24.2796,87.643,87.57,30.8483]
[1646558539277,113.3,87.642,87.562,23.9524]
[1646558539877,24.2796,87.643,87.562,23.9524]
[1646558541278,1.176,87.642,87.562,23.9524]
[1646558541679,24.2796,87.643,87.562,23.9524]
[1646558542579,24.2796,87.643,87.57,17.1282]
[1646558542786,24.2796,87.643,87.562,23.9524]
[1646558542981,113.3,87.641,87.561,56.2564852]
[1646558543380,113.3,87.639,87.561,56.2564852]
[1646558543584,56.84377954,87.64,87.561,56.2564852]
[1646558543585,113.3,87.637,87.561,56.2564852]
[1646558543781,113.3,87.637,87.51,91.1669]
[1646558543782,1.179,87.636,87.519,24.8753]
[1646558543980,113.3,87.635,87.52,17.1376]
[1646558544183,1.18,87.634,87.52,17.1376]
[1646558544382,181.66,87.629,87.52,17.1376]
[1646558544786,113.3,87.627,87.521,46.84222179]
[1646558544984,1.182,87.626,87.521,46.84222179]
[1646558545185,113.3,87.619,87.521,46.84222179]
[1646558545385,113.3,87.617,87.521,46.84222179]
[1646558545587,68.36,87.612,87.521,46.84222179]
[1646558545788,113.3,87.601,87.499,2.83613526]
[1646558545986,13.72,87.61,87.499,2.83613526]
[1646558545987,181.66,87.599,87.499,2.83613526]
[1646558546190,121.51,87.599,87.499,2.83613526]
[1646558546791,47.1564,87.6,87.5,72.99194948]
[1646558546792,63.67759171,87.598,87.5,72.99194948]
[1646558547188,113.3,87.597,87.501,2.83613526]
[1646558548191,113.3,87.597,87.51,17.1401]
[1646558548489,1.192,87.596,87.51,17.1401]
[1646558548690,63.67759171,87.598,87.51,19.97623526]
[1646558548691,1.193,87.597,87.51,19.97623526]
[1646558550491,1.193,87.597,87.511,5.71]
[1646558550890,1.193,87.597,87.511,8.54613526]
[1646558552191,1.193,87.597,87.521,39.05383651]
[1646558552390,63.67759171,87.598,87.522,5.71]
[1646558552990,1.194,87.597,87.521,39.05383651]
[1646558554790,114.494,87.597,87.521,39.05383651]
[1646558554990,122.334,87.597,87.503,5.71]
[1646558555192,122.334,87.597,87.498,2.83613526]
[1646558555389,113.3,87.595,87.498,2.83613526]
[1646558555589,1.177,87.594,87.498,2.83613526]
[1646558555796,113.3,87.593,87.498,2.83613526]
[1646558555991,1.16,87.592,87.503,63.64123436]
[1646558557194,1.143,87.596,87.503,63.64123436]
[1646558557898,1.141,87.597,87.51,17.1403]
[1646558558095,63.67759171,87.598,87.511,5.71]
[1646558558897,139.28827954,87.597,87.511,5.71]
[1646558559097,139.28827954,87.597,87.503,63.64123436]
[1646558559098,1.137,87.596,87.504,5.71]
[1646558559296,113.3,87.595,87.504,5.71]
[1646558559496,1.135,87.594,87.504,5.71]
[1646558559796,113.3,87.593,87.504,5.71]
[1646558559997,1.133,87.592,87.503,63.64123436]
[1646558560395,1.133,87.592,87.51,17.1403]
[1646558562098,114.431,87.593,87.51,17.1403]
[1646558562298,1.131,87.593,87.51,17.1403]
[1646558562503,63.67759171,87.598,87.51,17.1403]
[1646558562700,63.67759171,87.598,87.511,2.83613526]
[1646558562906,63.67759171,87.598,87.52,17.1372]
[1646558563101,63.67759171,87.598,87.521,31.26235163]
[1646558566108,1.123,87.597,87.521,31.26235163]
[1646558567008,63.67759171,87.598,87.521,31.26235163]
[1646558568619,113.3,87.597,87.521,31.26235163]
[1646558571721,137.47675554,87.597,87.521,31.26235163]
[1646558571923,181.66,87.589,87.49,22.26713526]
[1646558572319,137.47675554,87.589,87.49,22.26713526]
[1646558572520,1.121,87.588,87.49,22.26713526]
[1646558572719,25.9774,87.588,87.49,22.26713526]
[1646558572920,25.9774,87.588,87.491,54.94659708]
[1646558573120,24.8564,87.588,87.5,17.142]
[1646558573520,113.3,87.587,87.5,17.142]
[1646558574925,24.8564,87.588,87.5,17.142]
[1646558575527,113.3,87.587,87.5,17.142]
[1646558575927,24.8564,87.588,87.5,17.142]
[1646558576129,24.8564,87.588,87.501,2.83613526]
[1646558576330,24.8564,87.588,87.51,17.1391]
[1646558576530,2.06402713,87.596,87.511,0.22660142]
[1646558576731,1.176,87.597,87.512,5.1788629]
[1646558576929,1.176,87.597,87.515,0.42101341]
[1646558577133,1.176,87.597,87.53,13.72]
[1646558577330,1.176,87.597,87.531,24.22771341]
[1646558577531,1.176,87.597,87.55,17.131]
[1646558577731,1.176,87.597,87.551,55.36761049]
[1646558578030,48.3334,87.638,87.551,55.36761049]
[1646558578429,6.24405672,87.637,87.551,55.36761049]
[1646558578630,61.10091817,87.636,87.56,17.1297]
[1646558578835,85.27767371,87.636,87.551,54.94659708]
[1646558579030,31.59681226,87.635,87.551,54.94659708]
[1646558579231,6.24405672,87.634,87.551,54.94659708]
[1646558579431,1.176,87.633,87.551,54.94659708]
[1646558579746,6.24405672,87.632,87.551,54.94659708]
[1646558579932,24.17675554,87.633,87.56,17.1297]
[1646558580535,48.3334,87.638,87.56,17.1297]
[1646558580733,48.3334,87.638,87.561,0.25878809]
[1646558580934,48.3334,87.638,87.58,17.1253]
[1646558581133,113.3,87.66,87.58,23.2053]
[1646558581435,49.11376068,87.658,87.582,39.95698891]
[1646558581638,49.11376068,87.658,87.583,5.706]
[1646558582034,49.11376068,87.658,87.59,30.8438]
[1646558582237,112.1,87.661,87.591,5.706]
[1646558583236,22.5334,87.681,87.6,17.1222]
[1646558583436,22.5334,87.681,87.601,60.65159708]
[1646558584037,22.5334,87.681,87.602,0.22684697]
[1646558584240,22.5334,87.681,87.603,5.705]
[1646558584438,22.5334,87.681,87.621,39.95698891]
[1646558584638,64.26974367,87.685,87.621,46.12698891]
[1646558584840,112.1,87.698,87.621,46.12698891]
[1646558585037,112.1,87.698,87.622,0.2375806]
[1646558585238,22.77909954,87.697,87.621,46.12698891]
[1646558585441,112.1,87.698,87.63,17.1163]
[1646558585640,112.1,87.698,87.631,5.703]
[1646558585840,112.1,87.698,87.622,5.703]
[1646558586040,112.1,87.698,87.63,16.55613526]
[1646558586241,22.77909954,87.723,87.632,0.28928015]
[1646558586446,3.08245949,87.742,87.632,0.28928015]
[1646558586642,22.77909954,87.746,87.635,0.39444807]
[1646558586941,22.77909954,87.741,87.64,30.8333]
[1646558587148,53.57806662,87.74,87.641,84.21559704]
[1646558587543,152.13567059,87.739,87.641,84.21559704]
[1646558587743,152.13567059,87.739,87.641,83.82114897]
[1646558587943,38.83567059,87.738,87.641,83.82114897]
[1646558588346,38.83567059,87.737,87.641,83.82114897]
[1646558588747,152.13567059,87.736,87.641,83.82114897]
[1646558588949,1.171,87.735,87.641,78.12114897]
[1646558589148,113.3,87.734,87.641,53.41944897]
[1646558589448,113.3,87.724,87.641,53.41944897]
[1646558589649,114.459,87.724,87.641,53.41944897]
[1646558589851,113.3,87.722,87.641,53.41944897]
[1646558590048,1.153,87.721,87.641,53.41944897]
[1646558590249,113.3,87.72,87.641,53.41944897]
[1646558590451,113.3,87.718,87.642,5.702]
[1646558590751,181.66,87.709,87.613,5.702]
[1646558590956,1.158,87.708,87.57,19.423]
[1646558591153,17.1307,87.68,87.57,5.703]
[1646558591351,181.66,87.669,87.54,5.706]
[1646558591552,181.66,87.654,87.558,49.36911261]
[1646558591750,113.3,87.649,87.558,49.36911261]
[1646558591950,181.66,87.649,87.54,5.706]
[1646558592155,181.66,87.649,87.527,5.708]
[1646558592454,113.3,87.619,87.511,5.708]
[1646558592653,120.04,87.619,87.511,5.708]
[1646558592853,75.48644764,87.618,87.512,2.83613526]
[1646558593049,75.48644764,87.618,87.514,118.08679497]
[1646558593250,59.52564326,87.618,87.516,113.3]
[1646558593450,59.52564326,87.618,87.53,13.72]
[1646558593650,59.52564326,87.618,87.532,34.9878952]
[1646558593849,59.52564326,87.618,87.533,5.708]
[1646558594275,59.52564326,87.618,87.54,57.0998]
[1646558594472,59.52564326,87.618,87.541,5.708]
[1646558594673,59.52564326,87.618,87.55,17.13]
[1646558594873,59.52564326,87.618,87.551,5.708]
[1646558595082,59.52564326,87.618,87.552,49.27137984]
[1646558595273,59.52564326,87.618,87.553,5.708]
[1646558597777,59.52564326,87.618,87.531,5.708]
[1646558598177,59.52564326,87.618,87.53,17.136]
[1646558598476,59.52564326,87.618,87.531,60.12381571]
[1646558598675,59.52564326,87.618,87.532,5.708]
[1646558598880,59.52564326,87.618,87.54,17.134]
[1646558599279,114.325,87.617,87.531,60.12381571]
[1646558599879,1.025,87.617,87.531,60.12381571]
[1646558600479,59.52564326,87.618,87.532,5.708]
[1646558601080,59.52564326,87.618,87.54,17.1342]
[1646558601280,59.52564326,87.618,87.541,5.708]
[1646558601480,59.52564326,87.618,87.533,2.83613526]
[1646558601880,59.52564326,87.618,87.534,5.708]
[1646558602280,59.52564326,87.618,87.535,2.83613526]
[1646558602480,59.52564326,87.618,87.536,5.708]
[1646558602880,59.52564326,87.618,87.537,2.83613526]
[1646558603081,59.52564326,87.618,87.55,17.1325]
[1646558603280,59.52564326,87.618,87.552,34.77977028]
[1646558603480,59.52564326,87.618,87.553,5.708]
[1646558605380,59.52564326,87.618,87.552,34.77977028]
[1646558605582,59.52564326,87.618,87.55,17.1325]
[1646558605784,59.52564326,87.618,87.531,5.708]
[1646558606681,59.52564326,87.618,87.532,56.38368978]
[1646558606883,59.52564326,87.618,87.533,5.708]
[1646558607283,59.52564326,87.618,87.532,56.38368978]
[1646558608086,113.3,87.617,87.532,56.38368978]
[1646558613699,114.476,87.617,87.533,5.708]
[1646558615302,59.52564326,87.618,87.54,17.1343]
[1646558615501,1.173,87.632,87.542,113.83477286]
[1646558615699,23.7997,87.633,87.543,5.708]
[1646558615899,23.7997,87.633,87.543,30.02944242]
[1646558616098,23.7997,87.633,87.544,0.6258875]
[1646558616297,23.7997,87.633,87.545,5.708]
[1646558616500,55.2289536,87.632,87.56,13.72]
[1646558616700,113.3,87.631,87.561,51.98741782]
[1646558617099,89.76013296,87.632,87.561,51.98741782]
[1646558617299,2.05872754,87.63,87.561,51.98741782]
[1646558618606,2.05872754,87.63,87.562,5.708]
[1646558620213,2.05872754,87.63,87.57,17.1286]
[1646558620442,2.05872754,87.63,87.571,5.707]
[1646558621054,2.05872754,87.63,87.561,51.98741782]
[1646558622740,55.2289536,87.632,87.561,51.98741782]
[1646558622939,55.2289536,87.632,87.542,5.708]
[1646558622940,113.3,87.631,87.542,5.708]
[1646558623145,113.3,87.631,87.541,24.3972]
[1646558623146,113.3,87.629,87.541,24.3972]
[1646558623339,113.3,87.629,87.542,5.708]
[1646558623541,15.96080438,87.628,87.542,5.708]
[1646558623940,15.96080438,87.628,87.543,53.02153889]
[1646558624140,15.96080438,87.628,87.544,5.708]
[1646558624942,2.05887646,87.627,87.544,5.708]
[1646558627743,1.137,87.626,87.543,53.02153889]
[1646558627944,1.137,87.626,87.541,24.3972]
[1646558628145,2.05887646,87.625,87.537,5.708]
[1646558628348,1.098,87.624,87.532,5.708]
[1646558628546,113.3,87.623,87.532,5.708]
[1646558628744,1.059,87.622,87.532,5.708]
[1646558629045,113.3,87.621,87.532,62.67162057]
[1646558629246,1.02,87.62,87.532,62.67162057]
[1646558629647,56.17078602,87.618,87.532,62.67162057]
[1646558630048,3.03977646,87.617,87.532,56.96362057]
[1646558630447,24.4444,87.616,87.532,56.96362057]
[1646558632147,1.54411532,87.611,87.532,56.96362057]
[1646558632548,1.54411532,87.612,87.532,56.96362057]
[1646558633150,1.54411532,87.608,87.532,56.96362057]
[1646558633748,1.54411532,87.609,87.532,56.96362057]
[1646558634549,1.54411532,87.61,87.532,56.96362057]
[1646558635552,1.54411532,87.61,87.53,17.1359]
[1646558635756,1.54411532,87.61,87.521,5.708]
[1646558635757,114.84411532,87.609,87.521,5.708]
[1646558635953,1.54411532,87.597,87.521,5.708]
[1646558636161,1.54411532,87.582,87.521,5.708]
[1646558636354,113.3,87.581,87.521,5.708]
[1646558636559,62.15948985,87.58,87.51,60.78447063]
[1646558636754,113.3,87.579,87.51,60.78447063]
[1646558641267,62.15948985,87.58,87.51,60.78447063]
[1646558642260,113.3,87.579,87.51,60.78447063]
[1646558643062,1.184,87.578,87.51,60.78447063]
[1646558644064,113.3,87.579,87.51,60.78447063]
[1646558645164,62.15948985,87.58,87.51,60.78447063]
[1646558646664,61.65948985,87.58,87.51,60.78447063]
[1646558647268,61.65948985,87.58,87.51,77.92467063]
[1646558647465,23.5168,87.587,87.512,0.25001729]
[1646558647867,23.5168,87.587,87.514,0.27027817]
[1646558648065,1.54411532,87.613,87.514,0.27027817]
[1646558648266,1.54411532,87.616,87.53,17.1354]
[1646558648467,52.82080572,87.615,87.531,34.99118468]
[1646558648670,52.82080572,87.615,87.531,37.82731994]
[1646558649071,52.82080572,87.615,87.533,0.37206932]
[1646558649568,52.82080572,87.615,87.535,0.37206932]
[1646558649766,52.82080572,87.615,87.55,17.1319]
[1646558649967,52.82080572,87.615,87.551,59.15751198]
[1646558651269,52.82080572,87.615,87.551,58.78544266]
[1646558651473,52.82080572,87.615,87.552,0.22924106]
[1646558651870,52.82080572,87.615,87.551,58.78544266]
[1646558652471,52.82080572,87.615,87.552,0.22952626]
[1646558653571,48.3926,87.619,87.552,0.22952626]
[1646558654573,62.29265781,87.618,87.551,58.78544266]
[1646558655572,1.54411532,87.63,87.56,17.1303]
[1646558655772,1.54411532,87.631,87.561,0.28134256]
[1646558655971,1.54411532,87.635,87.561,0.28134256]
[1646558656171,44.72601375,87.633,87.561,0.28134256]
[1646558656573,54.38434542,87.632,87.561,0.28134256]
[1646558656775,54.38434542,87.632,87.56,17.1303]
[1646558657375,24.636,87.636,87.561,0.26611108]
[1646558657576,24.636,87.636,87.58,17.1257]
[1646558657775,24.636,87.636,87.58,24.0357]
[1646558657976,24.636,87.636,87.58,17.1257]
[1646558658375,62.76335153,87.635,87.581,36.61814333]
[1646558659477,62.76335153,87.635,87.58,17.1257]
[1646558659682,62.76335153,87.635,87.56,17.1299]
[1646558660279,113.3,87.634,87.552,24.9568]
[1646558660480,136.00367182,87.634,87.552,24.9568]
[1646558660679,106.42024487,87.633,87.532,23.5604]
[1646558660980,113.3,87.619,87.532,23.5604]
[1646558661179,1.54411532,87.614,87.518,24.9257]
[1646558661380,113.3,87.609,87.518,24.9257]
[1646558661604,113.3,87.607,87.519,54.1386545]
[1646558661779,113.3,87.607,87.518,24.9257]
[1646558661979,1.087,87.606,87.518,24.9257]
[1646558662183,113.3,87.599,87.505,24.2625]
[1646558662680,113.3,87.597,87.505,24.2625]
[1646558663083,114.84411532,87.595,87.505,24.2625]
[1646558663281,113.3,87.589,87.505,24.2625]
[1646558663482,113.3,87.589,87.491,49.24714242]
[1646558663880,113.3,87.587,87.492,59.09586382]
[1646558664283,2.05887646,87.586,87.492,59.09586382]
[1646558665884,2.05887646,87.586,87.492,61.93199908]
[1646558666086,113.3,87.579,87.492,61.93199908]
[1646558666588,181.66,87.577,87.484,17.117]
[1646558666787,181.66,87.577,87.481,2.83613526]
[1646558666985,1.54411532,87.573,87.459,23.71674746]
[1646558667188,113.3,87.559,87.46,2.83613526]
[1646558667386,113.3,87.557,87.46,19.98623526]
[1646558667586,113.3,87.555,87.461,55.50217856]
[1646558667786,113.3,87.555,87.461,82.05506128]
[1646558667986,113.3,87.555,87.462,2.83613526]
[1646558668788,47.98575569,87.556,87.462,2.83613526]
[1646558669189,47.98575569,87.556,87.47,17.1479]
[1646558669390,113.3,87.555,87.47,17.1479]
[1646558669591,119.53,87.555,87.47,17.1479]
[1646558669990,120.706,87.555,87.47,17.1479]
[1646558671892,7.406,87.555,87.47,17.1479]
[1646558672092,114.476,87.555,87.47,17.1479]
[1646558672296,123.286,87.555,87.47,17.1479]
[1646558673997,125.34487646,87.555,87.462,2.83613526]
[1646558674799,125.34487646,87.555,87.461,55.50217856]
[1646558674996,113.3,87.553,87.455,23.7785]
[1646558675199,181.66,87.549,87.455,23.7785]
[1646558675397,1.176,87.548,87.455,23.7785]
[1646558675597,3.23487646,87.548,87.455,23.7785]
[1646558675796,113.3,87.546,87.455,23.7785]
[1646558675997,1.176,87.545,87.456,52.84044005]
[1646558676198,3.23487646,87.545,87.456,52.84044005]
[1646558676616,2.05887646,87.544,87.456,52.84044005]
[1646558676816,113.3,87.541,87.456,52.84044005]
[1646558677014,1.176,87.54,87.456,52.84044005]
[1646558677214,3.23487646,87.54,87.456,52.84044005]
[1646558677614,2.05887646,87.539,87.456,52.84044005]
[1646558677814,1.175,87.538,87.456,52.84044005]
[1646558678214,2.05887646,87.537,87.456,52.84044005]
[1646558678415,113.3,87.536,87.456,52.84044005]
[1646558678717,2.05887646,87.535,87.456,52.84044005]
[1646558679015,24.9786,87.534,87.456,52.84044005]
[1646558679419,113.3,87.533,87.456,52.84044005]
[1646558679815,1.174,87.532,87.456,52.84044005]
[1646558680417,1.173,87.533,87.456,52.84044005]
[1646558680616,27.03747646,87.534,87.456,52.84044005]
[1646558681419,113.3,87.533,87.456,52.84044005]
[1646558681616,9.4,87.533,87.456,52.84044005]
[1646558681816,1.172,87.532,87.456,52.84044005]
[1646558682019,27.03747646,87.534,87.456,52.84044005]
[1646558682418,1.171,87.533,87.456,52.84044005]
[1646558683117,114.471,87.533,87.46,17.1501]
[1646558683318,114.471,87.533,87.456,52.84044005]
[1646558684118,1.171,87.533,87.456,52.84044005]
[1646558685016,113.3,87.533,87.456,52.84044005]
[1646558686219,2.05887646,87.532,87.456,52.84044005]
[1646558687619,2.05887646,87.532,87.46,17.1499]
[1646558687820,24.9786,87.534,87.46,17.1499]
[1646558688719,113.3,87.533,87.456,52.84044005]
[1646558689419,2.06592397,87.532,87.456,52.84044005]
[1646558689619,1.193,87.531,87.456,52.84044005]
[1646558690018,2.06592397,87.53,87.456,52.84044005]
[1646558692421,200.0,87.54,87.47,13.72]
[1646558692622,200.0,87.54,87.471,0.60146608]
[1646558693125,200.0,87.54,87.47,13.72]
[1646558693326,53.2874435,87.539,87.471,42.56314594]
[1646558693924,174.9074435,87.539,87.457,2.83613526]
[1646558694125,85.7439435,87.539,87.457,2.83613526]
[1646558694926,85.7439435,87.539,87.458,47.95296214]
[1646558695127,85.7439435,87.539,87.46,17.1493]
[1646558696027,1.54411532,87.537,87.455,23.7785]
[1646558696226,1.54411532,87.535,87.455,23.7785]
[1646558696628,3.61003929,87.535,87.455,23.7785]
[1646558697027,1.54411532,87.534,87.456,57.55377837]
[1646558697229,1.54411532,87.535,87.456,57.55377837]
[1646558697432,1.54411532,87.536,87.456,57.55377837]
[1646558698632,1.54411532,87.535,87.456,57.55377837]
[1646558698829,1.54411532,87.536,87.456,57.55377837]
[1646558699632,1.54411532,87.535,87.456,57.55377837]
[1646558700433,1.54411532,87.534,87.456,57.55377837]
[1646558701437,1.54411532,87.533,87.46,17.1501]
[1646558701637,23.748,87.538,87.46,30.8701]
[1646558701836,23.748,87.538,87.461,2.83613526]
[1646558703137,23.748,87.538,87.47,17.148]
[1646558703342,23.748,87.538,87.471,37.84980762]
[1646558704938,53.2874435,87.539,87.48,17.1459]
[1646558705138,201.54411532,87.54,87.481,0.43345103]
[1646558705338,200.0,87.54,87.481,3.26958629]
[1646558705745,200.0,87.54,87.483,0.54148187]
[1646558706051,200.0,87.54,87.483,118.38842185]
[1646558706345,200.0,87.54,87.491,0.54148187]
[1646558706643,200.0,87.54,87.501,47.14272451]
[1646558707048,200.0,87.54,87.501,46.60124264]
[1646558708446,200.0,87.54,87.502,0.54148187]
[1646558709057,200.0,87.54,87.501,46.60124264]
[1646558710147,200.0,87.54,87.51,17.1393]
[1646558711449,200.0,87.54,87.511,0.22239968]
[1646558711849,200.0,87.54,87.51,30.8593]
[1646558712048,200.0,87.54,87.512,2.83613526]
[1646558712649,1.54411532,87.59,87.512,2.83613526]
[1646558712851,1.54411532,87.607,87.521,117.97639765]
[1646558713050,1.54411532,87.607,87.54,17.1236]
[1646558713251,1.54411532,87.621,87.55,13.72]
[1646558713451,1.54411532,87.615,87.541,0.71070965]
[1646558713655,54.62687948,87.586,87.533,0.71070965]
[1646558713851,54.62687948,87.586,87.509,24.102]
[1646558714752,2.06592397,87.585,87.509,24.102]
[1646558714952,115.36592397,87.585,87.501,23.5245]
[1646558715153,113.3,87.583,87.501,23.5245]
[1646558715551,2.06592397,87.582,87.48,17.1437]
[1646558715752,2.06592397,87.582,87.482,64.68353742]
[1646558715753,113.3,87.579,87.482,64.68353742]
[1646558715954,1.175,87.578,87.482,64.68353742]
[1646558716155,2.06592397,87.578,87.482,64.68353742]
[1646558716352,1.54411532,87.577,87.482,64.68353742]
[1646558716552,3.61003929,87.577,87.482,64.68353742]
[1646558716852,3.61003929,87.576,87.482,64.68353742]
[1646558717050,2.06592397,87.576,87.482,64.68353742]
[1646558717250,2.06592397,87.575,87.482,64.68353742]
[1646558717877,3.61003929,87.575,87.482,64.68353742]
[1646558718053,2.06592397,87.575,87.482,64.68353742]
[1646558718253,2.06592397,87.574,87.482,64.68353742]
[1646558718852,3.61003929,87.574,87.482,64.68353742]
[1646558719256,2.06592397,87.573,87.482,64.68353742]
[1646558719456,113.3,87.571,87.482,64.68353742]
[1646558719957,113.3,87.569,87.482,64.68353742]
[1646558720155,1.179,87.568,87.482,64.68353742]
[1646558720356,3.24492397,87.568,87.482,64.68353742]
[1646558720758,2.06592397,87.567,87.482,64.68353742]
[1646558720958,1.177,87.566,87.49,17.1439]
[1646558721359,2.06592397,87.565,87.49,17.1439]
[1646558721663,1.174,87.564,87.49,17.1439]
[1646558721860,2.06592397,87.565,87.49,17.1439]
[1646558722061,2.06592397,87.563,87.49,17.1439]